fUST/lending_fUST_20240226
["ID","MTS","AMOUNT","RATE_DAILY","PERIOD"]
[315190177,1708915848232,-5000.0,0.00020154,2]
[315190178,1708915848241,-1000.0,0.00020154,2]
[315190179,1708915848249,-1000.0,0.00020154,2]
[315190180,1708915848258,-1000.0,0.00020154,2]
[315190181,1708915848267,-5000.0,0.00020154,2]
[315190182,1708915848276,-5000.0,0.00020154,2]
[315190183,1708915848285,-5000.0,0.00020154,2]
[315190184,1708915848294,-5000.0,0.00020154,2]
[315190185,1708915848303,-5000.0,0.00020154,2]
[315190186,1708915848312,-5000.0,0.00020154,2]
[315190187,1708915848321,-69829.96600592,0.0002017,2]
[315190188,1708915848330,-243.58118859,0.00020177,2]
[315190189,1708915848339,-30863.98609779,0.00020178,2]
[315190190,1708915848546,-500.0,0.00019178,2]
[315190191,1708915848556,-500.0,0.00019452,2]
[315190192,1708915848565,-500.0,0.00019726,2]
[315190193,1708915848574,-504.69641852,0.0002,2]
[315190194,1708915848582,-8262.08531078,0.00020178,2]
[315190195,1708915848593,-3418.25275689,0.00020178,2]
[315190196,1708915848681,-413.72058819,0.00019178,2]
[315190292,1708917041653,-691.70350185,0.00017258,2]
[315190295,1708917041663,-1600.10761346,0.00017259,2]
[315190297,1708917041673,-300.0,0.00017266,2]
[315190299,1708917041683,-34779.06248294,0.00017267,2]
[315190301,1708917041692,-926.09596786,0.00018,2]
[315190303,1708917041701,-223.04564105,0.000189,2]
[315190305,1708917041710,-202.70546637,0.00019078,2]
[315190307,1708917041719,-5346.77885759,0.00019078,2]
[315190309,1708917041728,-475.67,0.00019168,3]
[315190311,1708917041737,-237.83,0.00019168,3]
[315190313,1708917041747,-713.52,0.00019168,3]
[315190315,1708917041756,-333.69686052,0.00019178,2]
[315190317,1708917041765,-500.0,0.00019178,2]
[315190319,1708917041774,-399.09330614,0.00019178,2]
[315190321,1708917041783,-700.32,0.00019178,2]
[315190323,1708917041792,-500.0,0.00019178,2]
[315190325,1708917041801,-500.0,0.00019178,2]
[315190327,1708917041811,-500.96140246,0.00019178,2]
[315190329,1708917041820,-500.0,0.00019178,2]
[315190331,1708917041829,-500.0,0.00019178,2]
[315190333,1708917041838,-435.78314864,0.00019178,2]
[315190335,1708917041847,-500.0,0.00019178,2]
[315190337,1708917041856,-500.0,0.00019178,2]
[315190339,1708917041865,-500.0,0.00019178,2]
[315190340,1708917041874,-1198.29,0.00019178,2]
[315190343,1708917041884,-501.12063121,0.00019178,2]
[315190345,1708917041892,-500.0,0.00019178,2]
[315190346,1708917041902,-500.0,0.00019178,2]
[315190348,1708917041911,-500.0,0.00019178,2]
[315190350,1708917041922,-500.0,0.00019178,2]
[315190352,1708917041931,-503.07483176,0.00019178,2]
[315190354,1708917041940,-501.43554536,0.00019178,2]
[315190356,1708917041949,-500.0,0.00019178,2]
[315190358,1708917041958,-500.0,0.00019178,2]
[315190360,1708917041967,-500.0,0.00019178,2]
[315190362,1708917041977,-500.0,0.00019178,2]
[315190364,1708917041987,-500.0,0.00019178,2]
[315190366,1708917041996,-500.0,0.00019178,2]
[315190368,1708917042005,-1583.09,0.00019178,2]
[315190370,1708917042015,-500.0,0.00019178,2]
[315190372,1708917042026,-500.0,0.00019178,2]
[315190374,1708917042035,-520.70514631,0.00019178,2]
[315190376,1708917042046,-625.36,0.00019178,2]
[315190378,1708917042057,-500.0,0.00019178,2]
[315190380,1708917042068,-542.91475933,0.00019178,2]
[315190382,1708917042078,-507.460159,0.00019178,2]
[315190384,1708917042088,-350.38082204,0.00019178,2]
[315190386,1708917042099,-500.0,0.00019178,2]
[315190388,1708917042110,-500.0,0.00019178,2]
[315190390,1708917042120,-500.0,0.00019178,2]
[315190392,1708917042130,-503.7577512,0.00019178,2]
[315190394,1708917042141,-500.0,0.00019178,2]
[315190396,1708917042151,-500.0,0.00019178,2]
[315190398,1708917042162,-500.0,0.00019178,2]
[315190400,1708917042176,-500.0,0.00019178,2]
[315190402,1708917042187,-547.36,0.00019178,2]
[315190404,1708917042196,-500.0,0.00019178,2]
[315190406,1708917042206,-502.54323228,0.00019178,2]
[315190408,1708917042216,-501.25122817,0.00019178,2]
[315190410,1708917042225,-503.7,0.00019178,2]
[315190412,1708917042235,-500.0,0.00019178,2]
[315190414,1708917042244,-500.0,0.00019178,2]
[315190416,1708917042254,-500.0,0.00019178,2]
[315190418,1708917042264,-500.0,0.00019178,2]
[315190420,1708917042274,-500.0,0.00019178,2]
[315190422,1708917042283,-218.21102061,0.00019178,2]
[315190424,1708917042292,-501.98549869,0.00019178,2]
[315190426,1708917042302,-502.06092799,0.00019178,2]
[315190428,1708917042310,-500.0,0.00019178,2]
[315190430,1708917042322,-500.0,0.00019178,2]
[315190432,1708917042332,-500.0,0.00019178,2]
[315190434,1708917042341,-2079.49,0.00019178,2]
[315190435,1708917042351,-502.73999553,0.00019178,2]
[315190438,1708917042360,-500.89874379,0.00019178,2]
[315190439,1708917042370,-503.24638074,0.00019178,2]
[315190441,1708917042379,-500.94944783,0.00019178,2]
[315190443,1708917042388,-1545.33,0.00019178,2]
[315190445,1708917042397,-501.16377799,0.00019178,2]
[315190447,1708917042407,-209.81817441,0.00019178,2]
[315190449,1708917042419,-501.23396073,0.00019178,2]
[315190451,1708917042428,-500.0,0.00019178,2]
[315190453,1708917042437,-500.0,0.00019178,2]
[315190454,1708917042447,-501.76089687,0.00019178,2]
[315190456,1708917042456,-500.0,0.00019178,2]
[315190458,1708917042465,-500.0,0.00019178,2]
[315190459,1708917042474,-500.0,0.00019178,2]
[315190461,1708917042484,-500.0,0.00019178,2]
[315190463,1708917042493,-500.0,0.00019178,2]
[315190465,1708917042503,-501.45514214,0.00019178,2]
[315190467,1708917042513,-500.0,0.00019178,2]
[315190469,1708917042525,-565.91942738,0.00019178,2]
[315190471,1708917042534,-500.0,0.00019178,2]
[315190473,1708917042543,-500.0,0.00019178,2]
[315190475,1708917042552,-500.0,0.00019178,2]
[315190477,1708917042562,-500.0,0.00019178,2]
[315190479,1708917042571,-916.37,0.00019178,2]
[315190481,1708917042580,-500.0,0.00019178,2]
[315190483,1708917042589,-501.71675449,0.00019178,2]
[315190485,1708917042599,-500.0,0.00019178,2]
[315190487,1708917042609,-500.0,0.00019178,2]
[315190489,1708917042618,-500.0,0.00019178,2]
[315190491,1708917042627,-586.27941181,0.00019178,2]
[315190493,1708917042637,-500.0,0.00019178,2]
[315190495,1708917042647,-500.0,0.00019178,2]
[315190497,1708917042656,-501.18590422,0.00019178,2]
[315190499,1708917042667,-500.85128667,0.00019178,2]
[315190501,1708917042675,-500.0,0.00019178,2]
[315190503,1708917042684,-500.0,0.00019178,2]
[315190505,1708917042693,-151.0,0.00019178,2]
[315190507,1708917042701,-500.0,0.00019178,2]
[315190509,1708917042710,-500.0,0.00019178,2]
[315190511,1708917042719,-500.0,0.00019178,2]
[315190513,1708917042729,-500.0,0.00019178,2]
[315190514,1708917042738,-500.0,0.00019178,2]
[315190516,1708917042747,-500.0,0.00019178,2]
[315190518,1708917042757,-500.0,0.00019178,2]
[315190532,1708917042876,-500.0,0.00019178,2]
[315190534,1708917042887,-681.42,0.00019178,2]
[315190536,1708917042896,-1587.4,0.00019178,2]
[315190538,1708917042905,-500.0,0.00019178,2]
[315190540,1708917042916,-805.19,0.00019178,2]
[315190542,1708917042926,-10028.72,0.00019178,2]
[315190545,1708917042935,-1476.88,0.00019178,2]
[315190546,1708917042944,-500.0,0.00019178,2]
[315190549,1708917042954,-905.28,0.00019178,2]
[315190551,1708917042963,-500.0,0.00019178,2]
[315190553,1708917042972,-500.0,0.00019178,2]
[315190554,1708917042981,-212.2436076,0.00019178,2]
[315190556,1708917042990,-3748.67,0.00019178,2]
[315190559,1708917043000,-507.32053121,0.00019178,2]
[315190561,1708917043009,-500.0,0.00019178,2]
[315190563,1708917043018,-1856.18,0.00019178,2]
[315190565,1708917043027,-500.0,0.00019178,2]
[315190566,1708917043036,-500.0,0.00019178,2]
[315190569,1708917043046,-2759.03,0.00019178,2]
[315190571,1708917043055,-500.0,0.00019178,2]
[315190572,1708917043065,-500.0,0.00019178,2]
[315190574,1708917043074,-500.0,0.00019178,2]
[315190576,1708917043083,-249.10033961,0.00019178,2]
[315190578,1708917043091,-500.0,0.00019178,2]
[315190580,1708917043100,-500.0,0.00019178,2]
[315190581,1708917043108,-2453.69,0.00019178,2]
[315190583,1708917043117,-500.0,0.00019178,2]
[315190585,1708917043125,-477.95314472,0.00019178,2]
[315190587,1708917043134,-500.0,0.00019178,2]
[315190589,1708917043143,-500.0,0.00019178,2]
[315190590,1708917043152,-1000.0,0.00019178,2]
[315190592,1708917043160,-2023.15,0.00019178,2]
[315190594,1708917043172,-1820.51,0.00019178,2]
[315190595,1708917043181,-500.89846899,0.00019178,2]
[315190596,1708917043190,-500.0,0.00019178,2]
[315190597,1708917043198,-500.0,0.00019178,2]
[315190598,1708917043207,-500.0,0.00019178,2]
[315190599,1708917043216,-500.0,0.00019178,2]
[315190600,1708917043225,-500.0,0.00019178,2]
[315190601,1708917043233,-1000.0,0.00019178,2]
[315190602,1708917043242,-500.0,0.00019178,2]
[315190603,1708917043251,-500.0,0.00019178,2]
[315190604,1708917043260,-501.91998645,0.00019178,2]
[315190605,1708917043269,-500.0,0.00019178,2]
[315190606,1708917043278,-500.0,0.00019178,2]
[315190607,1708917043287,-510.75269847,0.00019178,2]
[315190608,1708917043297,-500.0,0.00019178,2]
[315190609,1708917043306,-500.0,0.00019178,2]
[315190610,1708917043315,-231.56852676,0.00019178,2]
[315190611,1708917043325,-522.16106929,0.00019178,2]
[315190612,1708917043334,-500.0,0.00019178,2]
[315190613,1708917043343,-291.02772414,0.00019178,2]
[315190614,1708917043352,-21001.28,0.00019178,2]
[315190615,1708917043361,-500.0,0.00019178,2]
[315190616,1708917043370,-500.0,0.00019178,2]
[315190617,1708917043380,-268.97832651,0.00019178,2]
[315190618,1708917043389,-509.9265336,0.00019178,2]
[315190619,1708917043398,-597.75,0.00019178,2]
[315190621,1708917043407,-409.80494479,0.00019178,2]
[315190622,1708917043419,-500.0,0.00019178,2]
[315190623,1708917043428,-500.0,0.00019178,2]
[315190624,1708917043438,-1638.28,0.00019178,2]
[315190625,1708917043448,-500.0,0.00019178,2]
[315190626,1708917043457,-500.33386123,0.00019178,2]
[315190627,1708917043466,-500.0,0.00019178,2]
[315190628,1708917043475,-500.0,0.00019178,2]
[315190629,1708917043484,-500.0,0.00019178,2]
[315190630,1708917043495,-500.0,0.00019178,2]
[315190631,1708917043508,-500.0,0.00019178,2]
[315190632,1708917043517,-500.0,0.00019178,2]
[315190634,1708917043526,-500.0,0.00019178,2]
[315190636,1708917043535,-7633.39,0.00019178,2]
[315190637,1708917043545,-501.53195024,0.00019178,2]
[315190638,1708917043554,-501.17230716,0.00019178,2]
[315190639,1708917043564,-2089.83,0.00019178,2]
[315190640,1708917043573,-500.0,0.00019178,2]
[315190641,1708917043582,-502.14294064,0.00019178,2]
[315190642,1708917043591,-10480.73,0.00019178,2]
[315190643,1708917043600,-505.62729352,0.00019178,2]
[315190644,1708917043609,-500.0,0.00019178,2]
[315190645,1708917043618,-500.0,0.00019178,2]
[315190646,1708917043627,-500.0,0.00019178,2]
[315190647,1708917043636,-500.0,0.00019178,2]
[315190648,1708917043645,-500.0,0.00019178,2]
[315190649,1708917043654,-500.0,0.00019178,2]
[315190650,1708917043667,-500.0,0.00019178,2]
[315190651,1708917043676,-500.0,0.00019178,2]
[315190652,1708917043685,-500.0,0.00019178,2]
[315190653,1708917043694,-2901.8,0.00019178,2]
[315190654,1708917043702,-500.0,0.00019178,2]
[315190655,1708917043711,-500.0,0.00019178,2]
[315190656,1708917043720,-500.0,0.00019178,2]
[315190657,1708917043729,-500.0,0.00019178,2]
[315190658,1708917043739,-500.0,0.00019178,2]
[315190659,1708917043748,-500.0,0.00019178,2]
[315190660,1708917043757,-500.0,0.00019178,2]
[315190661,1708917043766,-737.97,0.00019178,2]
[315190662,1708917043775,-500.0,0.00019178,2]
[315190663,1708917043784,-500.0,0.00019178,2]
[315190664,1708917043794,-500.0,0.00019178,2]
[315190665,1708917043803,-604.40046169,0.00019178,2]
[315190666,1708917043813,-230.48065429,0.00019178,2]
[315190667,1708917043822,-500.0,0.00019178,2]
[315190668,1708917043831,-3064.17,0.00019178,2]
[315190669,1708917043840,-500.0,0.00019178,2]
[315190671,1708917043849,-2299.51,0.00019178,2]
[315190673,1708917043859,-500.0,0.00019178,2]
[315190675,1708917043869,-3286.5,0.00019178,2]
[315190676,1708917043878,-500.0,0.00019178,2]
[315190678,1708917043886,-4187.34,0.00019178,2]
[315190679,1708917043895,-500.0,0.00019178,2]
[315190680,1708917043905,-500.0,0.00019178,2]
[315190681,1708917043914,-418.40116223,0.00019178,2]
[315190682,1708917043925,-1508.67,0.00019178,2]
[315190683,1708917043934,-21845.95,0.00019178,2]
[315190684,1708917043942,-500.0,0.00019178,2]
[315190685,1708917043951,-500.0,0.00019178,2]
[315190686,1708917043960,-2085.88,0.00019178,2]
[315190687,1708917043970,-500.0,0.00019178,2]
[315190688,1708917043979,-1224.31,0.00019178,2]
[315190689,1708917043988,-1662.03,0.00019178,2]
[315190690,1708917043999,-500.0,0.00019178,2]
[315190691,1708917044008,-500.0,0.00019178,2]
[315190692,1708917044017,-640.38620748,0.00019178,2]
[315190693,1708917044026,-500.0,0.00019178,2]
[315190694,1708917044036,-500.0,0.00019178,2]
[315190695,1708917044045,-249.09722205,0.00019178,2]
[315190696,1708917044055,-549.12685038,0.00019178,2]
[315190697,1708917044064,-181.84943336,0.00019178,2]
[315190698,1708917044074,-500.0,0.00019178,2]
[315190699,1708917044083,-500.0,0.00019178,2]
[315190700,1708917044092,-601.83460681,0.00019178,2]
[315190701,1708917044101,-500.0,0.00019178,2]
[315190702,1708917044111,-500.0,0.00019178,2]
[315190703,1708917044120,-400.24472666,0.00019178,2]
[315190704,1708917044129,-165.062066,0.00019178,2]
[315190705,1708917044138,-163.6093,0.00019178,2]
[315190706,1708917044148,-166.666666,0.00019178,2]
[315190707,1708917044157,-200.0,0.000192,2]
[315190708,1708917044166,-500.0,0.00019451,2]
[315190709,1708917044176,-500.0,0.00019451,2]
[315190710,1708917044185,-500.0,0.00019451,2]
[315190711,1708917044194,-500.0,0.00019451,2]
[315190712,1708917044203,-500.0,0.00019452,2]
[315190713,1708917044214,-700.32,0.00019452,2]
[315190714,1708917044223,-500.0,0.00019452,2]
[315190715,1708917044232,-619.10188517,0.00019452,2]
[315190716,1708917044241,-620.48309113,0.00019452,2]
[315190717,1708917044250,-500.0,0.00019452,2]
[315190718,1708917044260,-500.0,0.00019452,2]
[315190719,1708917044269,-500.0,0.00019452,2]
[315190720,1708917044279,-500.0,0.00019452,2]
[315190721,1708917044288,-1198.29,0.00019452,2]
[315190722,1708917044297,-500.0,0.00019452,2]
[315190723,1708917044306,-500.0,0.00019452,2]
[315190724,1708917044316,-500.0,0.00019452,2]
[315190725,1708917044325,-500.0,0.00019452,2]
[315190726,1708917044334,-469.51232523,0.00019452,2]
[315190727,1708917044344,-506.56827643,0.00019452,2]
[315190728,1708917044353,-500.0,0.00019452,2]
[315190729,1708917044362,-500.0,0.00019452,2]
[315190730,1708917044371,-1583.09,0.00019452,2]
[315190731,1708917044381,-625.36,0.00019452,2]
[315190732,1708917044390,-452.29044727,0.00019452,2]
[315190733,1708917044400,-500.0,0.00019452,2]
[315190734,1708917044409,-500.0,0.00019452,2]
[315190735,1708917044420,-500.0,0.00019452,2]
[315190736,1708917044429,-500.0,0.00019452,2]
[315190737,1708917044439,-547.36,0.00019452,2]
[315190738,1708917044448,-500.0,0.00019452,2]
[315190739,1708917044458,-503.7,0.00019452,2]
[315190740,1708917044467,-500.0,0.00019452,2]
[315190741,1708917044476,-500.0,0.00019452,2]
[315190742,1708917044485,-500.0,0.00019452,2]
[315190743,1708917044494,-500.0,0.00019452,2]
[315190744,1708917044505,-500.0,0.00019452,2]
[315190745,1708917044517,-500.0,0.00019452,2]
[315190746,1708917044526,-2079.49,0.00019452,2]
[315190747,1708917044535,-1545.33,0.00019452,2]
[315190748,1708917044544,-500.0,0.00019452,2]
[315190749,1708917044554,-502.13232332,0.00019452,2]
[315190750,1708917044563,-500.0,0.00019452,2]
[315190751,1708917044572,-500.0,0.00019452,2]
[315190752,1708917044581,-501.11759681,0.00019452,2]
[315190753,1708917044590,-500.0,0.00019452,2]
[315190754,1708917044600,-500.0,0.00019452,2]
[315190755,1708917044609,-916.37,0.00019452,2]
[315190756,1708917044618,-500.0,0.00019452,2]
[315190757,1708917044627,-500.0,0.00019452,2]
[315190758,1708917044636,-500.0,0.00019452,2]
[315190759,1708917044647,-500.0,0.00019452,2]
[315190760,1708917044656,-267.02389564,0.00019452,2]
[315190761,1708917044666,-500.0,0.00019452,2]
[315190762,1708917044675,-500.0,0.00019452,2]
[315190763,1708917044685,-151.0,0.00019452,2]
[315190764,1708917044694,-500.0,0.00019452,2]
[315190765,1708917044703,-500.0,0.00019452,2]
[315190766,1708917044713,-500.0,0.00019452,2]
[315190767,1708917044722,-371.5006517,0.00019452,2]
[315190768,1708917044731,-500.0,0.00019452,2]
[315190769,1708917044740,-291.00212191,0.00019452,2]
[315190770,1708917044749,-500.0,0.00019452,2]
[315190771,1708917044758,-500.0,0.00019452,2]
[315190772,1708917044767,-681.42,0.00019452,2]
[315190773,1708917044776,-1587.4,0.00019452,2]
[315190774,1708917044785,-500.0,0.00019452,2]
[315190775,1708917044794,-805.19,0.00019452,2]
[315190776,1708917044803,-10028.72,0.00019452,2]
[315190777,1708917044812,-1476.88,0.00019452,2]
[315190778,1708917044821,-500.35866528,0.00019452,2]
[315190779,1708917044829,-905.28,0.00019452,2]
[315190780,1708917044838,-502.09355324,0.00019452,2]
[315190781,1708917044847,-500.0,0.00019452,2]
[315190782,1708917044856,-3748.67,0.00019452,2]
[315190783,1708917044865,-500.0,0.00019452,2]
[315190784,1708917044874,-1856.18,0.00019452,2]
[315190785,1708917044883,-500.0,0.00019452,2]
[315190786,1708917044892,-500.0,0.00019452,2]
[315190787,1708917044901,-2759.03,0.00019452,2]
[315190788,1708917044910,-487.01483259,0.00019452,2]
[315190789,1708917044920,-500.0,0.00019452,2]
[315190790,1708917044930,-501.95527175,0.00019452,2]
[315190791,1708917044938,-500.0,0.00019452,2]
[315190792,1708917044947,-500.0,0.00019452,2]
[315190793,1708917044956,-2453.69,0.00019452,2]
[315190794,1708917044965,-500.0,0.00019452,2]
[315190795,1708917044974,-500.0,0.00019452,2]
[315190796,1708917044983,-500.81546176,0.00019452,2]
[315190797,1708917044992,-1000.0,0.00019452,2]
[315190798,1708917045002,-2023.15,0.00019452,2]
[315190799,1708917045011,-1820.51,0.00019452,2]
[315190800,1708917045020,-500.0,0.00019452,2]
[315190801,1708917045029,-635.83996825,0.00019452,2]
[315190802,1708917045038,-500.0,0.00019452,2]
[315190803,1708917045047,-500.0,0.00019452,2]
[315190804,1708917045056,-501.85263397,0.00019452,2]
[315190805,1708917045065,-1000.0,0.00019452,2]
[315190806,1708917045074,-500.0,0.00019452,2]
[315190807,1708917045084,-500.0,0.00019452,2]
[315190808,1708917045093,-500.0,0.00019452,2]
[315190809,1708917045102,-510.36105547,0.00019452,2]
[315190810,1708917045111,-500.0,0.00019452,2]
[315190811,1708917045120,-500.0,0.00019452,2]
[315190812,1708917045129,-500.0,0.00019452,2]
[315190813,1708917045138,-21001.28,0.00019452,2]
[315190814,1708917045147,-500.0,0.00019452,2]
[315190815,1708917045156,-501.52534223,0.00019452,2]
[315190816,1708917045166,-597.75,0.00019452,2]
[315190817,1708917045175,-500.0,0.00019452,2]
[315190818,1708917045184,-500.0,0.00019452,2]
[315190819,1708917045193,-1638.28,0.00019452,2]
[315190820,1708917045203,-500.0,0.00019452,2]
[315190821,1708917045212,-436.52101816,0.00019452,2]
[315190822,1708917045222,-500.0,0.00019452,2]
[315190823,1708917045231,-500.0,0.00019452,2]
[315190824,1708917045240,-500.0,0.00019452,2]
[315190825,1708917045250,-500.0,0.00019452,2]
[315190826,1708917045259,-500.0,0.00019452,2]
[315190827,1708917045268,-500.0,0.00019452,2]
[315190828,1708917045366,-7633.39,0.00019452,2]
[315190829,1708917045375,-2089.83,0.00019452,2]
[315190830,1708917045384,-500.0,0.00019452,2]
[315190831,1708917045394,-10480.73,0.00019452,2]
[315190832,1708917045403,-500.0,0.00019452,2]
[315190833,1708917045412,-616.05400382,0.00019452,2]
[315190834,1708917045421,-500.0,0.00019452,2]
[315190835,1708917045430,-2901.8,0.00019452,2]
[315190836,1708917045440,-500.0,0.00019452,2]
[315190837,1708917045449,-500.0,0.00019452,2]
[315190838,1708917045458,-500.0,0.00019452,2]
[315190839,1708917045466,-500.0,0.00019452,2]
[315190840,1708917045475,-500.0,0.00019452,2]
[315190841,1708917045485,-737.97,0.00019452,2]
[315190842,1708917045493,-500.0,0.00019452,2]
[315190843,1708917045505,-500.0,0.00019452,2]
[315190844,1708917045514,-500.0,0.00019452,2]
[315190845,1708917045523,-500.0,0.00019452,2]
[315190846,1708917045532,-3064.17,0.00019452,2]
[315190847,1708917045541,-500.0,0.00019452,2]
[315190848,1708917045551,-2299.51,0.00019452,2]
[315190849,1708917045560,-500.0,0.00019452,2]
[315190850,1708917045569,-3286.5,0.00019452,2]
[315190851,1708917045578,-500.0,0.00019452,2]
[315190852,1708917045587,-4187.34,0.00019452,2]
[315190853,1708917045598,-500.0,0.00019452,2]
[315190854,1708917045608,-1508.67,0.00019452,2]
[315190855,1708917045617,-21845.95,0.00019452,2]
[315190856,1708917045626,-500.0,0.00019452,2]
[315190857,1708917045635,-500.0,0.00019452,2]
[315190858,1708917045644,-2085.88,0.00019452,2]
[315190859,1708917045654,-500.0,0.00019452,2]
[315190860,1708917045663,-1224.31,0.00019452,2]
[315190861,1708917045672,-1662.03,0.00019452,2]
[315190862,1708917045681,-500.0,0.00019452,2]
[315190863,1708917045690,-406.90252759,0.00019452,2]
[315190864,1708917045699,-331.05449464,0.00019452,2]
[315190865,1708917045708,-500.0,0.00019452,2]
[315190866,1708917045717,-500.0,0.00019452,2]
[315190867,1708917045726,-500.0,0.00019452,2]
[315190868,1708917045735,-500.0,0.00019452,2]
[315190869,1708917045744,-3152.07790071,0.00019462,2]
[315190870,1708917045753,-4178.33582189,0.00019468,2]
[315190871,1708917045762,-3152.07790071,0.00019474,2]
[315190872,1708917045771,-4178.33582189,0.00019475,2]
[315190873,1708917045780,-182.85476532,0.00019477,2]
[315190874,1708917045789,-3152.07790071,0.00019485,2]
[315190875,1708917045798,-182.85476532,0.00019487,2]
[315190876,1708917045807,-4178.33582189,0.00019493,2]
[315190877,1708917045817,-182.85476532,0.00019496,2]
[315190878,1708917045826,-153.0,0.00019589,2]
[315190879,1708917045835,-153.0,0.00019589,2]
[315190880,1708917045844,-153.0,0.00019589,2]
[315190881,1708917045852,-153.0,0.00019589,2]
[315190882,1708917045862,-153.0,0.00019589,2]
[315190883,1708917045871,-306.0,0.00019589,2]
[315190884,1708917045879,-2908.84509306,0.00019626,2]
[315190885,1708917045889,-166.666666,0.00019627,2]
[315190886,1708917045898,-75877.75163095,0.00019635,2]
[315190887,1708917045907,-2377.88332858,0.000197,2]
[315190888,1708917045918,-2377.88332858,0.000197,2]
[315190889,1708917045927,-2377.88332858,0.000197,2]
[315190890,1708917045936,-3152.0779007,0.000197,2]
[315190891,1708917045945,-3152.0779007,0.000197,2]
[315190892,1708917045954,-3152.0779007,0.000197,2]
[315190893,1708917045962,-500.0,0.00019725,2]
[315190894,1708917045971,-500.0,0.00019725,2]
[315190895,1708917045981,-500.0,0.00019725,2]
[315190896,1708917045990,-501.59546841,0.00019726,2]
[315190897,1708917045999,-700.32,0.00019726,2]
[315190898,1708917046008,-500.0,0.00019726,2]
[315190899,1708917046017,-500.0,0.00019726,2]
[315190900,1708917046026,-500.0,0.00019726,2]
[315190901,1708917046036,-346.48014905,0.00019726,2]
[315190902,1708917046045,-259.03475328,0.00019726,2]
[315190903,1708917046054,-1198.29,0.00019726,2]
[315190904,1708917046063,-500.0,0.00019726,2]
[315190905,1708917046072,-500.0,0.00019726,2]
[315190906,1708917046081,-500.0,0.00019726,2]
[315190907,1708917046091,-500.0,0.00019726,2]
[315190908,1708917046100,-500.0,0.00019726,2]
[315190909,1708917046109,-500.0,0.00019726,2]
[315190910,1708917046119,-1583.09,0.00019726,2]
[315190912,1708917046129,-625.36,0.00019726,2]
[315190913,1708917046138,-500.0,0.00019726,2]
[315190914,1708917046148,-500.0,0.00019726,2]
[315190916,1708917046158,-500.0,0.00019726,2]
[315190917,1708917046168,-500.0,0.00019726,2]
[315190918,1708917046178,-547.36,0.00019726,2]
[315190919,1708917046188,-500.0,0.00019726,2]
[315190920,1708917046198,-503.7,0.00019726,2]
[315190921,1708917046207,-500.0,0.00019726,2]
[315190922,1708917046217,-500.0,0.00019726,2]
[315190923,1708917046226,-500.0,0.00019726,2]
[315190924,1708917046235,-500.0,0.00019726,2]
[315190925,1708917046245,-500.0,0.00019726,2]
[315190926,1708917046254,-504.61327759,0.00019726,2]
[315190927,1708917046263,-2079.49,0.00019726,2]
[315190928,1708917046272,-1545.33,0.00019726,2]
[315190929,1708917046281,-500.0,0.00019726,2]
[315190930,1708917046290,-500.0,0.00019726,2]
[315190931,1708917046299,-500.0,0.00019726,2]
[315190932,1708917046308,-500.0,0.00019726,2]
[315190933,1708917046316,-500.0,0.00019726,2]
[315190934,1708917046325,-916.37,0.00019726,2]